fUSD/lending_fUSD_20241225
["ID","MTS","AMOUNT","RATE_DAILY","PERIOD"]
[346609918,1735125037906,-500.0,0.00010464,2]
[346609919,1735125037915,-500.0,0.00010464,2]
[346609920,1735125037925,-6085.96,0.00010464,2]
[346609921,1735125037934,-2970.33,0.00010464,2]
[346609922,1735125037943,-1543.09,0.00010464,2]
[346609923,1735125037952,-768.8,0.00010464,2]
[346609924,1735125037961,-993.06,0.00010464,2]
[346609925,1735125037971,-1019.47,0.00010464,2]
[346609926,1735125037980,-714.55,0.00010464,2]
[346609927,1735125037989,-2355.55,0.00010464,2]
[346609928,1735125037998,-1901.98,0.00010464,2]
[346609929,1735125038008,-2072.63,0.00010464,2]
[346609930,1735125038017,-500.0,0.00010464,2]
[346609931,1735125038026,-1077.68,0.00010464,2]
[346609932,1735125038036,-626.11,0.00010464,2]
[346609933,1735125038045,-500.0,0.00010464,2]
[346609934,1735125038054,-1258.6,0.00010464,2]
[346609935,1735125038063,-7237.59024119,0.00010464,2]
[346609938,1735125038506,-659.71975881,0.00010464,2]
[346609939,1735125038516,-493.43191186,0.00010464,2]
[346609940,1735125038528,-6.56808814,0.00010464,2]
[346609941,1735125038538,-789.66,0.00010464,2]
[346609942,1735125038548,-664.67,0.00010464,2]
[346609943,1735125038558,-649.66,0.00010464,2]
[346609944,1735125038568,-509.44,0.00010464,2]
[346609945,1735125038578,-481.2303344,0.00010464,2]
[346609946,1735125038590,-18.7696656,0.00010464,2]
[346609947,1735125038599,-481.2303344,0.00010464,2]
[346609948,1735125038635,-776.6396656,0.00010464,2]
[346609949,1735125038645,-1117.23,0.00010464,2]
[346609950,1735125038655,-282.22152723,0.00010464,2]
[346609951,1735125038667,-1520.30847277,0.00010464,2]
[346609952,1735125038676,-500.0,0.00010464,2]
[346609953,1735125038685,-1047.14,0.00010464,2]
[346609954,1735125038695,-500.0,0.00010464,2]
[346609955,1735125038704,-516.17850208,0.00010465,2]
[346609956,1735125038714,-552.57,0.00010465,2]
[346609957,1735125038724,-500.0,0.00010465,2]
[346609958,1735125038739,-500.0,0.00010465,2]
[346609959,1735125038748,-788.81,0.00010465,2]
[346609960,1735125038757,-554.96,0.00010465,2]
[346609961,1735125038767,-629.41,0.00010465,2]
[346609962,1735125038776,-571.5,0.00010465,2]
[346609963,1735125038786,-838.58,0.00010465,2]
[346609965,1735125038795,-247.69989627,0.00010465,2]
[346609967,1735125038805,-823.74,0.00010465,2]
[346609969,1735125038815,-534.44968042,0.00010465,2]
[346609971,1735125038824,-500.0,0.00010465,2]
[346609973,1735125038834,-1226.46,0.00010465,2]
[346609975,1735125038843,-638.41,0.00010465,2]
[346609977,1735125038852,-607.07,0.00010465,2]
[346609979,1735125038861,-500.0,0.00010465,2]
[346609981,1735125038872,-574.9,0.00010465,2]
[346609983,1735125038881,-500.0,0.00010465,2]
[346609985,1735125038891,-593.35,0.00010465,2]
[346609987,1735125038901,-500.0,0.00010465,2]
[346609989,1735125038910,-500.0,0.00010465,2]
[346609991,1735125038921,-1313.5,0.00010465,2]
[346609993,1735125038930,-668.38,0.00010465,2]
[346609995,1735125038940,-500.0,0.00010465,2]
[346609997,1735125038949,-1193.43,0.00010465,2]
[346609999,1735125038959,-500.0,0.00010465,2]
[346610001,1735125038968,-621.74,0.00010465,2]
[346610003,1735125038978,-1471.03,0.00010465,2]
[346610005,1735125038987,-705.13,0.00010465,2]
[346610007,1735125038997,-500.0,0.00010465,2]
[346610009,1735125039006,-511.09,0.00010465,2]
[346610011,1735125039016,-500.0,0.00010465,2]
[346610013,1735125039025,-500.0,0.00010465,2]
[346610015,1735125039034,-500.0,0.00010465,2]
[346610017,1735125039043,-761.91,0.00010465,2]
[346610019,1735125039052,-1936.99,0.00010465,2]
[346610021,1735125039062,-535.1,0.00010465,2]
[346610023,1735125039071,-962.47,0.00010465,2]
[346610025,1735125039080,-215.31287733,0.00010465,2]
[346610137,1735125040155,-921.69,9.643e-05,2]
[346610139,1735125040166,-921.69,9.917e-05,2]
[346610141,1735125040175,-921.69,0.00010191,2]
[346610143,1735125040185,-284.68712267,0.00010465,2]
[346610145,1735125040194,-500.0,0.00010465,2]
[346610147,1735125040204,-500.0,0.00010465,2]
[346610149,1735125040213,-839.07,0.00010465,2]
[346610151,1735125040222,-37.82287733,0.00010465,2]
[346610153,1735125040234,-462.17712267,0.00010465,2]
[346610155,1735125040244,-818.01,0.00010465,2]
[346610157,1735125040254,-500.0,0.00010465,2]
[346610159,1735125040263,-500.0,0.00010465,2]
[346610161,1735125040272,-1483.43,0.00010465,2]
[346610163,1735125040281,-500.0,0.00010465,2]
[346610165,1735125040291,-1185.91,0.00010465,2]
[346610167,1735125040299,-1260.17,0.00010465,2]
[346610169,1735125040309,-597.72,0.00010465,2]
[346610171,1735125040318,-500.0,0.00010465,2]
[346610173,1735125040328,-500.0,0.00010465,2]
[346610175,1735125040338,-500.0,0.00010465,2]
[346610177,1735125040346,-1563.5,0.00010465,2]
[346610179,1735125040356,-1504.3,0.00010465,2]
[346610181,1735125040365,-549.84,0.00010465,2]
[346610183,1735125040375,-500.0,0.00010465,2]
[346610185,1735125040385,-711.24,0.00010465,2]
[346610187,1735125040395,-500.0,0.00010465,2]
[346610189,1735125040404,-500.0,0.00010465,2]
[346610191,1735125040414,-1546.29,0.00010465,2]
[346610194,1735125040424,-709.25,0.00010465,2]
[346610195,1735125040434,-500.0,0.00010465,2]
[346610197,1735125040445,-1038.86,0.00010465,2]
[346610199,1735125040455,-517.32,0.00010465,2]
[346610201,1735125040464,-500.0,0.00010465,2]
[346610203,1735125040473,-657.14,0.00010465,2]
[346610205,1735125040483,-500.0,0.00010465,2]
[346610207,1735125040492,-500.0,0.00010465,2]
[346610209,1735125040501,-551.02,0.00010465,2]
[346610211,1735125040510,-500.0,0.00010465,2]
[346610213,1735125040520,-231.02769296,0.00010465,2]
[346610216,1735125040532,-268.97230704,0.00010465,2]
[346610218,1735125040542,-545.93,0.00010465,2]
[346610220,1735125040551,-630.99,0.00010465,2]
[346610222,1735125040561,-1319.1,0.00010465,2]
[346610224,1735125040571,-500.0,0.00010465,2]
[346610225,1735125040580,-674.5,0.00010465,2]
[346610227,1735125040590,-260.50769296,0.00010465,2]
[346610231,1735125040618,-294.61230704,0.00010465,2]
[346610233,1735125040629,-500.0,0.00010465,2]
[346610235,1735125040638,-500.0,0.00010465,2]
[346610237,1735125040647,-500.0,0.00010465,2]
[346610239,1735125040656,-567.37,0.00010465,2]
[346610241,1735125040666,-500.0,0.00010465,2]
[346610243,1735125040676,-799.25,0.00010465,2]
[346610245,1735125040685,-546.54,0.00010465,2]
[346610247,1735125040694,-556.39,0.00010465,2]
[346610249,1735125040703,-500.0,0.00010465,2]
[346610251,1735125040712,-599.99979833,0.00010465,2]
[346610253,1735125040724,-131.38020167,0.00010465,2]
[346610255,1735125040734,-655.2,0.00010465,2]
[346610257,1735125040745,-108.02790464,0.00010465,2]
[346610259,1735125040756,-391.97209536,0.00010465,2]
[346610261,1735125040765,-29.85589165,0.00010465,2]
[346610265,1735125040791,-556.71410835,0.00010465,2]
[346610267,1735125040800,-440.82421307,0.00010465,2]
[346610270,1735125041174,-59.17578693,0.00010465,2]
[346610271,1735125041185,-782.71,0.00010465,2]
[346610272,1735125041194,-500.0,0.00010465,2]
[346610273,1735125041203,-858.56845307,0.00010465,2]
[346610274,1735125041214,-202.64154693,0.00010465,2]
[346610275,1735125041224,-86.63379354,0.00010465,2]
[346610276,1735125041235,-413.36620646,0.00010465,2]
[346610277,1735125041245,-655.5,0.00010465,2]
[346610278,1735125041254,-873.51100673,0.00010465,2]
[346610279,1735125041265,-234.91899327,0.00010465,2]
[346610280,1735125041274,-671.69,0.00010465,2]
[346610281,1735125041283,-500.0,0.00010465,2]
[346610282,1735125041293,-921.69,0.00010465,2]
[346610283,1735125041302,-515.56,0.00010466,2]
[346610284,1735125041311,-914.04043819,0.00010466,2]
[346610285,1735125041323,-958.60956181,0.00010466,2]
[346610286,1735125041332,-394.62834041,0.00010466,2]
[346610287,1735125041355,-300.85849784,0.00010466,2]
[346610288,1735125041408,-49.73316175,0.00010466,2]
[346610289,1735125041422,-500.0,0.00010466,2]
[346610290,1735125041431,-665.30067413,0.00010466,2]
[346610313,1735125043440,-283.821,9.916e-05,2]
[346610316,1735125043451,-216.179,9.916e-05,2]
[346610318,1735125043460,-152.94370208,9.916e-05,2]
[346610320,1735125043471,-347.05629792,9.916e-05,2]
[346610322,1735125043481,-75.13918868,0.0001019,2]
[346610324,1735125043492,-1160.3056848,0.0001019,2]
[346610328,1735125043517,-418.34512652,0.0001019,2]
[346610330,1735125043526,-500.0,0.0001019,2]
[346610331,1735125043535,-590.74509011,0.0001019,2]
[346610334,1735125043546,-901.98490989,0.0001019,2]
[346610336,1735125043556,-1653.79,0.00010464,2]
[346610337,1735125043565,-500.0,0.00010464,2]
[346610338,1735125043575,-1492.73,0.00010464,2]
[346610339,1735125043584,-415.81932587,0.00010466,2]
[346610340,1735125043593,-1081.12,0.00010466,2]
[346610341,1735125043602,-957.54,0.00010466,2]
[346610342,1735125043612,-372.41666092,0.00010466,2]
[346610343,1735125043621,-589.77,0.00010466,2]
[346610344,1735125043630,-700.43,0.00010466,2]
[346610345,1735125043640,-3957.402,0.00010466,2]
[346610346,1735125043649,-157.647,0.00010466,2]
[346610347,1735125043658,-1081.12,0.00010467,2]
[346610348,1735125043667,-951.17,0.00010468,2]
[346610349,1735125043677,-3771.0,0.00010589,2]
[346610350,1735125043686,-908.64,0.00010589,2]
[346610351,1735125043695,-818.0,0.00010589,2]
[346610352,1735125043704,-1256.0,0.00010589,2]
[346610353,1735125043713,-3112.481,0.00010589,2]
[346610354,1735125043722,-536.0,0.00010589,2]
[346610355,1735125043737,-150.0,0.00010589,2]
[346610356,1735125043746,-3885.0,0.00010589,2]
[346610357,1735125043756,-1170.0,0.00010589,2]
[346610358,1735125043765,-1101.0,0.00010589,2]
[346610359,1735125043775,-1081.12,0.00010599,2]
[346610360,1735125043784,-286.93894689,0.00010729,2]
[346610361,1735125043793,-1264.81,0.00010738,2]
[346610362,1735125043801,-1360.41,0.00010738,2]
[346610363,1735125043810,-5091.52,0.00010738,2]
[346610364,1735125043819,-8072.16,0.00010738,2]
[346610365,1735125043828,-542.9,0.00010738,2]
[346610366,1735125043837,-688.2,0.00010738,2]
[346610367,1735125043846,-869.82,0.00010738,2]
[346610368,1735125043856,-503.92,0.00010738,2]
[346610369,1735125043865,-1509.46,0.00010738,2]
[346610370,1735125043874,-500.0,0.00010738,2]
[346610371,1735125043884,-500.0,0.00010738,2]
[346610372,1735125043893,-1104.98,0.00010738,2]
[346610373,1735125043902,-500.0,0.00010738,2]
[346610374,1735125043911,-500.0,0.00010738,2]
[346610375,1735125043921,-2970.33,0.00010738,2]
[346610376,1735125043930,-6085.96,0.00010738,2]
[346610377,1735125043939,-1543.09,0.00010738,2]
[346610378,1735125043948,-768.8,0.00010738,2]
[346610379,1735125043957,-993.06,0.00010738,2]
[346610380,1735125043966,-1019.47,0.00010738,2]
[346610381,1735125043975,-714.55,0.00010738,2]
[346610382,1735125043983,-2355.55,0.00010738,2]
[346610384,1735125043992,-1901.98,0.00010738,2]
[346610387,1735125044001,-2072.63,0.00010738,2]
[346610389,1735125044010,-500.0,0.00010738,2]
[346610390,1735125044019,-1077.68,0.00010738,2]
[346610391,1735125044028,-626.11,0.00010738,2]
[346610392,1735125044037,-500.0,0.00010738,2]
[346610393,1735125044046,-1258.6,0.00010738,2]
[346610394,1735125044055,-7897.31,0.00010738,2]
[346610395,1735125044063,-500.0,0.00010738,2]
[346610396,1735125044072,-789.66,0.00010738,2]
[346610397,1735125044081,-664.67,0.00010738,2]
[346610398,1735125044089,-649.66,0.00010738,2]
[346610399,1735125044098,-509.44,0.00010738,2]
[346610400,1735125044107,-1257.87,0.00010738,2]
[346610401,1735125044116,-1117.23,0.00010738,2]
[346610402,1735125044125,-1802.53,0.00010738,2]
[346610403,1735125044134,-500.0,0.00010738,2]
[346610404,1735125044143,-500.0,0.00010738,2]
[346610405,1735125044153,-1047.14,0.00010738,2]
[346610406,1735125044162,-500.0,0.00010738,2]
[346610407,1735125044172,-1653.79,0.00010738,2]
[346610408,1735125044181,-500.0,0.00010738,2]
[346610409,1735125044191,-1492.73,0.00010738,2]
[346610410,1735125044200,-552.57,0.00010739,2]
[346610411,1735125044209,-500.0,0.00010739,2]
[346610412,1735125044219,-500.0,0.00010739,2]
[346610413,1735125044228,-788.81,0.00010739,2]
[346610414,1735125044237,-554.96,0.00010739,2]
[346610415,1735125044246,-629.41,0.00010739,2]
[346610416,1735125044255,-571.5,0.00010739,2]
[346610417,1735125044265,-838.58,0.00010739,2]
[346610418,1735125044274,-823.74,0.00010739,2]
[346610419,1735125044283,-500.0,0.00010739,2]
[346610420,1735125044291,-1226.46,0.00010739,2]
[346610421,1735125044434,-638.41,0.00010739,2]
[346610422,1735125044463,-607.07,0.00010739,2]
[346610423,1735125044474,-500.0,0.00010739,2]
[346610424,1735125044484,-574.9,0.00010739,2]
[346610425,1735125044494,-500.0,0.00010739,2]
[346610426,1735125044503,-593.35,0.00010739,2]
[346610427,1735125044513,-500.0,0.00010739,2]
[346610428,1735125044522,-500.0,0.00010739,2]
[346610429,1735125044532,-1313.5,0.00010739,2]
[346610430,1735125044542,-668.38,0.00010739,2]
[346610431,1735125044551,-500.0,0.00010739,2]
[346610432,1735125044560,-1193.43,0.00010739,2]
[346610433,1735125044570,-500.0,0.00010739,2]
[346610434,1735125044579,-621.74,0.00010739,2]
[346610435,1735125044588,-1471.03,0.00010739,2]
[346610436,1735125044598,-705.13,0.00010739,2]
[346610437,1735125044607,-500.0,0.00010739,2]
[346610438,1735125044616,-511.09,0.00010739,2]
[346610439,1735125044626,-500.0,0.00010739,2]
[346610440,1735125044636,-500.0,0.00010739,2]
[346610441,1735125044646,-500.0,0.00010739,2]
[346610442,1735125044655,-761.91,0.00010739,2]
[346610443,1735125044666,-535.1,0.00010739,2]
[346610444,1735125044675,-962.47,0.00010739,2]
[346610445,1735125044685,-500.0,0.00010739,2]
[346610446,1735125044694,-500.0,0.00010739,2]
[346610447,1735125044704,-500.0,0.00010739,2]
[346610448,1735125044714,-839.07,0.00010739,2]
[346610449,1735125044723,-500.0,0.00010739,2]
[346610450,1735125044734,-818.01,0.00010739,2]
[346610451,1735125044743,-500.0,0.00010739,2]
[346610452,1735125044752,-500.0,0.00010739,2]
[346610453,1735125044762,-1483.43,0.00010739,2]
[346610454,1735125044772,-500.0,0.00010739,2]
[346610455,1735125044783,-1185.91,0.00010739,2]
[346610456,1735125044792,-1260.17,0.00010739,2]
[346610457,1735125044801,-597.72,0.00010739,2]
[346610458,1735125044811,-500.0,0.00010739,2]
[346610459,1735125044820,-500.0,0.00010739,2]
[346610460,1735125044830,-500.0,0.00010739,2]
[346610461,1735125044839,-1563.5,0.00010739,2]
[346610462,1735125044848,-1504.3,0.00010739,2]
[346610463,1735125044857,-549.84,0.00010739,2]
[346610464,1735125044867,-500.0,0.00010739,2]
[346610465,1735125044880,-711.24,0.00010739,2]
[346610466,1735125044890,-500.0,0.00010739,2]
[346610467,1735125044899,-500.0,0.00010739,2]
[346610468,1735125044909,-1546.29,0.00010739,2]
[346610469,1735125044919,-709.25,0.00010739,2]
[346610470,1735125044931,-500.0,0.00010739,2]
[346610471,1735125044942,-1038.86,0.00010739,2]
[346610472,1735125044952,-517.32,0.00010739,2]
[346610473,1735125044962,-500.0,0.00010739,2]
[346610474,1735125044972,-657.14,0.00010739,2]
[346610475,1735125044982,-500.0,0.00010739,2]
[346610476,1735125044992,-500.0,0.00010739,2]
[346610477,1735125045001,-551.02,0.00010739,2]
[346610478,1735125045011,-500.0,0.00010739,2]
[346610479,1735125045021,-500.0,0.00010739,2]
[346610480,1735125045031,-545.93,0.00010739,2]
[346610481,1735125045040,-630.99,0.00010739,2]
[346610482,1735125045050,-1319.1,0.00010739,2]
[346610483,1735125045059,-500.0,0.00010739,2]
[346610484,1735125045070,-674.5,0.00010739,2]
[346610485,1735125045080,-555.12,0.00010739,2]
[346610486,1735125045089,-500.0,0.00010739,2]
[346610487,1735125045099,-500.0,0.00010739,2]
[346610488,1735125045108,-500.0,0.00010739,2]
[346610489,1735125045118,-567.37,0.00010739,2]
[346610490,1735125045127,-500.0,0.00010739,2]
[346610491,1735125045137,-799.25,0.00010739,2]
[346610492,1735125045147,-546.54,0.00010739,2]
[346610493,1735125045158,-556.39,0.00010739,2]
[346610494,1735125045170,-500.0,0.00010739,2]
[346610495,1735125045179,-731.38,0.00010739,2]
[346610496,1735125045189,-655.2,0.00010739,2]
[346610497,1735125045199,-500.0,0.00010739,2]
[346610498,1735125045209,-586.57,0.00010739,2]
[346610499,1735125045219,-324.50354358,0.00010739,2]
[346610500,1735125045228,-782.71,0.00010739,2]
[346610501,1735125045238,-500.0,0.00010739,2]
[346610502,1735125045247,-1061.21,0.00010739,2]
[346610503,1735125045256,-500.0,0.00010739,2]
[346610504,1735125045266,-655.5,0.00010739,2]
[346610505,1735125045275,-1108.43,0.00010739,2]
[346610506,1735125045285,-671.69,0.00010739,2]
[346610507,1735125045294,-500.0,0.00010739,2]
[346610508,1735125045304,-921.69,0.00010739,2]
[346610509,1735125045315,-515.56,0.0001074,2]
[346610510,1735125045325,-1872.65,0.0001074,2]
[346610511,1735125045334,-745.22,0.0001074,2]
[346610512,1735125045344,-500.0,0.0001074,2]
[346610513,1735125045354,-1081.12,0.0001074,2]
[346610514,1735125045364,-1081.12,0.0001074,2]
[346610515,1735125045374,-957.54,0.0001074,2]
[346610516,1735125045383,-589.77,0.0001074,2]
[346610517,1735125045393,-700.43,0.0001074,2]
[346610518,1735125045402,-1081.12,0.00010741,2]
[346610519,1735125045411,-2000.0,0.00010904,2]
[346610520,1735125045422,-200.0,0.00010904,2]
[346610521,1735125045431,-385.12047755,0.00010913,2]
[346610522,1735125045441,-153.0,0.00010947,2]
[346610523,1735125045452,-153.0,0.00010947,2]
[346610524,1735125045462,-153.0,0.00010947,2]
[346610525,1735125045471,-153.0,0.00010947,2]
[346610526,1735125045480,-153.0,0.00010947,2]
[346610527,1735125045490,-153.0,0.00010947,2]
[346610528,1735125045499,-153.0,0.00010947,2]
[346610529,1735125045508,-153.0,0.00010947,2]
[346610530,1735125045518,-153.0,0.00010947,2]
[346610531,1735125045527,-153.0,0.00010947,2]
[346610532,1735125045536,-153.0,0.00010947,2]
[346610533,1735125045546,-153.0,0.00010947,2]
[346610534,1735125045555,-153.0,0.00010947,2]
[346610535,1735125045564,-153.0,0.00010947,2]
[346610536,1735125045575,-153.0,0.00010947,2]
[346610537,1735125045584,-153.0,0.00010947,2]
[346610538,1735125045594,-153.0,0.00010947,2]
[346610539,1735125045605,-153.0,0.00010947,2]
[346610540,1735125045616,-153.0,0.00010947,2]
[346610541,1735125045625,-153.0,0.00010947,2]
[346610542,1735125045635,-153.0,0.00010947,2]
[346610543,1735125045644,-153.0,0.00010947,2]
[346610544,1735125045654,-153.0,0.00010947,2]
[346610545,1735125045665,-153.0,0.00010947,2]
[346610546,1735125045674,-153.0,0.00010947,2]
[346610547,1735125045683,-153.0,0.00010947,2]
[346610548,1735125045692,-153.0,0.00010947,2]
[346610549,1735125045701,-153.0,0.00010947,2]
[346610550,1735125045711,-201.5,0.00010949,2]
[346610551,1735125045720,-1081.12,0.00010949,2]
[346610552,1735125045730,-150.0,0.00010959,2]
[346610553,1735125045740,-1081.12,0.00010999,2]
[346610554,1735125045750,-203.41,0.00011003,2]
[346610555,1735125045759,-201.3,0.00011004,2]
[346610556,1735125045769,-202.3,0.00011004,2]
[346610557,1735125045779,-200.89,0.00011004,2]
[346610558,1735125045788,-201.01,0.00011004,2]
[346610559,1735125045797,-203.14,0.00011004,2]
[346610560,1735125045807,-200.36,0.00011004,2]
[346610561,1735125045817,-201.19,0.00011004,2]
[346610562,1735125045828,-202.44,0.00011004,2]
[346610563,1735125045837,-203.14,0.00011004,2]
[346610564,1735125045847,-203.4,0.00011004,2]
[346610565,1735125045856,-202.34,0.00011004,2]
[346610566,1735125045866,-201.15,0.00011004,2]
[346610567,1735125045876,-200.89,0.00011004,2]
[346610568,1735125045886,-200.55,0.00011004,2]
[346610569,1735125045895,-202.06,0.00011004,2]
[346610570,1735125045904,-203.33,0.00011004,2]
[346610571,1735125045915,-201.99,0.00011005,2]
[346610572,1735125045926,-203.72,0.00011005,2]
[346610573,1735125045935,-200.62,0.00011005,2]
[346610574,1735125045945,-526.29,0.00011012,2]
[346610575,1735125045955,-164.676109,0.00011012,2]
[346610576,1735125045965,-331.31639,0.00011012,2]
[346610577,1735125045974,-500.0,0.00011012,2]
[346610578,1735125045984,-314.376916,0.00011012,2]
[346610579,1735125045995,-500.0,0.00011012,2]
[346610580,1735125046005,-888.27,0.00011012,2]
[346610581,1735125046015,-1264.81,0.00011012,2]
[346610582,1735125046024,-500.0,0.00011012,2]
[346610583,1735125046034,-1360.41,0.00011012,2]
[346610584,1735125046043,-849.0,0.00011012,2]
[346610586,1735125046053,-5091.52,0.00011012,2]
[346610587,1735125046063,-500.0,0.00011012,2]
[346610588,1735125046073,-1300.29,0.00011012,2]
[346610589,1735125046083,-8072.16,0.00011012,2]
[346610590,1735125046092,-643.09,0.00011012,2]
[346610591,1735125046102,-542.9,0.00011012,2]
[346610592,1735125046112,-2749.58,0.00011012,2]
[346610593,1735125046121,-688.2,0.00011012,2]
[346610594,1735125046131,-869.82,0.00011012,2]
[346610595,1735125046140,-953.13,0.00011012,2]
[346610596,1735125046150,-503.92,0.00011012,2]
[346610597,1735125046159,-4526.22,0.00011012,2]
[346610598,1735125046171,-1509.46,0.00011012,2]
[346610599,1735125046181,-500.0,0.00011012,2]
[346610600,1735125046191,-500.0,0.00011012,2]
[346610601,1735125046200,-3166.68,0.00011012,2]
[346610602,1735125046210,-1104.98,0.00011012,2]
[346610603,1735125046219,-500.0,0.00011012,2]
[346610604,1735125046229,-500.0,0.00011012,2]
[346610605,1735125046239,-500.0,0.00011012,2]
[346610607,1735125046248,-2970.33,0.00011012,2]
[346610609,1735125046257,-6085.96,0.00011012,2]
[346610611,1735125046267,-1543.09,0.00011012,2]
[346610613,1735125046277,-2044.02,0.00011012,2]
[346610614,1735125046287,-768.8,0.00011012,2]
[346610615,1735125046296,-993.06,0.00011012,2]
[346610616,1735125046306,-1019.47,0.00011012,2]
[346610618,1735125046316,-714.55,0.00011012,2]
[346610619,1735125046325,-9611.2622348,0.00011012,2]
[346610620,1735125046341,-863.2177652,0.00011012,2]
[346610621,1735125046351,-2355.55,0.00011012,2]
[346610622,1735125046360,-1901.98,0.00011012,2]
[346610623,1735125046370,-2072.63,0.00011012,2]
[346610624,1735125046380,-500.0,0.00011012,2]
[346610625,1735125046390,-1077.68,0.00011012,2]
[346610626,1735125046399,-626.11,0.00011012,2]
[346610627,1735125046408,-500.0,0.00011012,2]
[346610628,1735125046419,-1258.6,0.00011012,2]
[346610629,1735125046429,-7897.31,0.00011012,2]
[346610630,1735125046438,-581.85,0.00011012,2]
[346610631,1735125046449,-500.0,0.00011012,2]
[346610632,1735125046458,-789.66,0.00011012,2]
[346610633,1735125046468,-664.67,0.00011012,2]
[346610634,1735125046477,-649.66,0.00011012,2]
[346610635,1735125046487,-526.36,0.00011012,2]
[346610636,1735125046496,-509.44,0.00011012,2]
[346610637,1735125046505,-1257.87,0.00011012,2]
[346610638,1735125046514,-1117.23,0.00011012,2]
[346610639,1735125046524,-1802.53,0.00011012,2]
[346610640,1735125046533,-500.0,0.00011012,2]
[346610641,1735125046542,-500.0,0.00011012,2]
[346610642,1735125046551,-1047.14,0.00011012,2]
[346610643,1735125046560,-500.0,0.00011012,2]
[346610644,1735125046570,-1725.59,0.00011012,2]
[346610645,1735125046580,-1653.79,0.00011012,2]
[346610646,1735125046589,-500.0,0.00011012,2]
[346610647,1735125046599,-200.22,0.00011013,2]
[346610648,1735125046608,-200.35,0.00011013,2]
[346610649,1735125046618,-203.65,0.00011013,2]
[346610650,1735125046628,-203.58,0.00011013,2]
[346610651,1735125046637,-500.0,0.00011013,2]
[346610652,1735125046646,-648.59,0.00011013,2]
[346610653,1735125046656,-785.11,0.00011013,2]
[346610654,1735125046666,-500.0,0.00011013,2]
[346610655,1735125046675,-500.0,0.00011013,2]
[346610656,1735125046686,-500.0,0.00011013,2]
[346610657,1735125046695,-557.11,0.00011013,2]
[346610658,1735125046705,-500.0,0.00011013,2]
[346610659,1735125046715,-500.0,0.00011013,2]
[346610660,1735125046724,-500.0,0.00011013,2]
[346610661,1735125046737,-500.0,0.00011013,2]
[346610662,1735125046746,-500.0,0.00011013,2]
[346610663,1735125046756,-500.0,0.00011013,2]
[346610664,1735125046766,-728.96,0.00011013,2]
[346610665,1735125046776,-500.0,0.00011013,2]
[346610666,1735125046786,-669.56,0.00011013,2]
[346610667,1735125046795,-500.0,0.00011013,2]
[346610668,1735125046806,-500.0,0.00011013,2]
[346610670,1735125046815,-726.31,0.00011013,2]
[346610671,1735125046825,-538.54,0.00011013,2]
[346610673,1735125046835,-500.0,0.00011013,2]
[346610674,1735125047111,-777.03,0.00011013,2]
[346610675,1735125047128,-500.0,0.00011013,2]
[346610676,1735125047137,-500.0,0.00011013,2]
[346610677,1735125047147,-672.42,0.00011013,2]